Cogmind - Beta 17.1 @@@ ROGUE MODE // 2026.09.01 @ 01:28:50 Player: Finn Result: Destroyed by K5-VD3(R) with Subdweller Laser Performance ------------- Evolutions (0) 0 Regions Visited (2) 400 Robots Destroyed (11) 55 Value Destroyed (313) 313 Prototype IDs (0) 0 Alien Tech Used (0) 0 Bonus (0) 0 TOTAL SCORE: 768 Bonus ------- None Cogmind --------- Core Integrity 0/250 Matter 270/300 Energy 265/265 System Corruption 0% Temperature Cool (6) Movement Rolling (90) Location -10/Subcaves Parts ------- > --- POWER (1) -------- Improved Ion Engine > --- PROPULSION (2) --- Armored Wheel Armored Wheel > --- UTILITY (2) ------ Small Storage Unit Core Shielding > --- WEAPON (2) ------- Small Laser > --- INVENTORY (8) ---- Improved Ion Engine Improved Ion Engine Wheel Terrain Scanner Peak State ------------ > --- POWER ------------ Improved Ion Engine > --- PROPULSION ------- Armored Wheel Armored Wheel > --- UTILITY ---------- Small Storage Unit Core Shielding > --- WEAPON ----------- EM Pulse Gun Light Assault Rifle > --- INVENTORY -------- Improved Ion Engine Improved Ion Engine Improved Ion Engine Wheel Armored Wheel Armored Wheel Medium Laser Small Laser [Rating: 11] Favorites ----------- Power Improved Ion Engine Engine Improved Ion Engine Propulsion Armored Wheel Wheel Armored Wheel Utility Small Storage Unit Storage Small Storage Unit Protection Core Shielding Weapon EM Pulse Gun Energy Gun EM Pulse Gun Ballistic Gun Light Assault Rifle Build | -11 -10 -10 ------- Run | Yrd Mat Sub Slots Evolved . | . . . Power . | . . . Propulsion . | . . . Utility . | . . . Weapon . | . . . Parts Attached 18 | 6 8 4 Power 5 | 1 3 1 Engine 5 | 1 3 1 Core . | . . . Reactor . | . . . Propulsion 6 | 2 2 2 Treads . | . . . Leg . | . . . Wheel 6 | 2 2 2 Hover . | . . . Flight . | . . . Utility 2 | 1 1 . Device . | . . . Storage 1 | 1 . . Processor . | . . . Hackware . | . . . Protection 1 | . 1 . Artifact . | . . . Weapon 5 | 2 2 1 Energy Gun 3 | 1 1 1 Energy Cannon . | . . . Ballistic Gun 2 | 1 1 . Ballistic Cannon . | . . . Launcher . | . . . Special Weapon . | . . . Impact Weapon . | . . . Slashing Weapon . | . . . Piercing Weapon . | . . . Special Melee Weapon . | . . . Unidentified Prototypes . | . . . Parts Lost 7 | . 2 5 Power 1 | . . 1 Propulsion 3 | . 1 2 Utility . | . . . Weapon 3 | . 1 2 Highest Loss Streak 5 | . 2 5 To Critical Strikes . | . . . Average Backups 6 | 3 6 5 Power 1 | . 1 2 Propulsion 2 | 1 3 2 Utility . | . . 1 Weapon . | . 1 . Tool/Special . | . . . Unused Backups 6 | . 4 2 Power 1 | . . 1 Propulsion 4 | . 4 . Utility 1 | . . 1 Weapon . | . . . Tool/Special . | . . . Average Slot Usage (%) 84 | . 85 82 Engine 13 | . 14 11 Wheel 23 | . 24 23 Storage 14 | . 14 14 Protection 7 | . 4 14 Energy Gun 17 | . 19 14 Ballistic Gun 7 | . 8 4 Peak Build Rating 11 | 6 11 11 Average Rating 8 | 4 8 8 On Entrance 5 | . 6 11 Avg Prop Armor Cover (%) . | . . . Naked Turns . | . . . Heaviest Build 16 | 13 16 16 Greatest Support 24 | 20 24 24 Greatest Overweight (x) 2 | . 1 2 Average Overweight (x) . | . . . Largest Inventory Capacity 8 | 8 8 8 Average Capacity 7 | 6 8 8 Most Carried 8 | 6 8 8 Average Carried 6 | 3 6 5 Final Capacity 8 | 8 8 8 Final Carried 8 | 6 8 4 Class Distribution -------------------- 100% | Mutant Dominant Class ---------------- Mutant | -10/Materials Mutant | -10/Subcaves Resources | -11 -10 -10 ----------- Run | Yrd Mat Sub Matter Collected 343 | 188 120 35 Remotely . | . . . Salvage Created 399 | . 280 119 Parts 18 | . 13 5 Haulers Intercepted . | . . . Recyclers Shooed . | . . . Parts Field Recycled . | . . . Retrieved Matter . | . . . Parts Self-Destructed 8 | . . 8 Prevented . | . . . Parts Restored . | . . . Kills | -11 -10 -10 ------- Run | Yrd Mat Sub Combat Hostiles Destroyed 10 | . 7 3 Guns 10 | . 7 3 Classes Destroyed 4 | . 3 1 Worker 1 | . 1 . Swarmer 3 | . 3 . Grunt 4 | . 4 . Subdweller 3 | . . 3 Best Kill Streak 6 | . 6 2 Combat Bots Only 5 | . 5 2 Max Kills in Single Turn 2 | . 2 1 Gunslinging 1 | . 1 . Exploded . | . . . Melee . | . . . Uniques/NPCs Destroyed . | . . . Combat | -11 -10 -10 -------- Run | Yrd Mat Sub Hostile Shots Fired 98 | . 45 53 Missed 29 | . 13 16 Hits 69 | . 32 37 Projectile 69 | . 32 37 Critical Strikes 2 | . . 2 Damage Taken 1236 | . 433 803 Core 266 | . 67 199 Absorbed by Shields . | . . . Redirected to Shielding 44 | . . 44 Core Remaining (%) 100 | 100 . . Volleys Fired 67 | . 33 34 Largest 2 | . 2 2 Hottest 90 | . 90 60 Shots Fired 106 | . 64 42 Gun 106 | . 64 42 Cannon . | . . . Launcher . | . . . Special . | . . . Kinetic 28 | . 20 8 Thermal 63 | . 32 31 Explosive . | . . . Electromagnetic 15 | . 12 3 Robot Hit Streak 16 | . 7 16 Robot Miss Streak 3 | . 3 1 Penetration Max . | . . . Secondary Targets 3 | . 3 . Max Gunslinging Chain 1 | . 1 . Shots Hit Robots 83 | . 44 39 Core Hits 25 | . 14 11 Critical Kills . | . . . Critical Parts Destroyed . | . . . Critical Strikes 3 | . 3 . Burn 3 | . 3 . Melee Attacks . | . . . Impact . | . . . Slashing . | . . . Piercing . | . . . Sneak Attacks . | . . . Combat Hostiles . | . . . Follow-up Attacks . | . . . Damage Inflicted 925 | . 518 407 Guns 925 | . 518 407 Cannons . | . . . Explosions . | . . . Melee . | . . . Ramming . | . . . Kinetic 161 | . 108 53 Thermal 582 | . 263 319 Explosive . | . . . Electromagnetic 182 | . 147 35 Impact . | . . . Slashing . | . . . Piercing . | . . . Highest Corruption . | . . . Average Corruption . | . . . Corruption Purged . | . . . Corruption Blocked . | . . . Overload Shots . | . . . Overflow Damage . | . . . Projectiles . | . . . Explosions . | . . . Melee . | . . . Knockbacks . | . . . Impact . | . . . Kinetic . | . . . Secondary . | . . . Self-Inflicted Damage . | . . . Shots . | . . . Rammed . | . . . Targets Rammed . | . . . Kicked . | . . . Crushed . | . . . Highest Temperature 376 | . 376 3 Average Temperature 175 | . 184 3 Received Heat Transfer 447 | . 225 222 Effects 5 | . 5 . Shutdowns 1 | . 1 . Energy Bleed 3 | . 3 . Short Circuit 1 | . 1 . Siege Activations . | . . . Martial Activations . | . . . Shielding Activations . | . . . Robots Disrupted . | . . . Combat Hostiles . | . . . Robots Corrupted . | . . . Combat Hostiles . | . . . Parts Fried . | . . . Impact Corruptions . | . . . Robots Melted . | . . . Combat Hostiles . | . . . Parts Melted 2 | . 1 1 Heat Transferred 1724 | . 999 725 Parts Sabotaged . | . . . Parts Stolen . | . . . Parts Stripped . | . . . Power Chain Reactions . | . . . Alert | -11 -10 -10 ------- Run | Yrd Mat Sub Maximum Alert Level . | . . . Low Security (%) 100 | 100 100 . Level 1 . | . . . Level 2 . | . . . Level 3 . | . . . Level 4 . | . . . Level 5 . | . . . High Security . | . . . Max Security . | . . . Peak Influence 120 | . 120 . Initial . | . . . Average 30 | . 34 . Influence Increases 190 | . 190 . Destroy 0b10 Robot/C 140 | . 140 . Destroy 0b10 Robot/NC 5 | . 5 . Destroy Leader 30 | . 30 . Partial Spotted 15 | . 15 . Influence Decreases 190 | . 184 6 Entered New Map 4 | . . 4 Time Decay 176 | . 174 2 Lost Part 10 | . 10 . Squads Dispatched . | . . . Investigation . | . . . Extermination . | . . . Reinforcement . | . . . Assault . | . . . Garrison . | . . . Intercept . | . . . Searches Triggered . | . . . Construction Impeded . | . . . Haulers Reinforced . | . . . Active Scanning Responses . | . . . Cargo Convoy Interrupts . | . . . Stealth | -11 -10 -10 --------- Run | Yrd Mat Sub Distress Signals . | . . . Communications Jammed . | . . . Distress Signals . | . . . Times Spotted 14 | . 10 4 Peak Tracking Total 6 | . 6 2 Tactical Retreats . | . . . Traps | -11 -10 -10 ------- Run | Yrd Mat Sub Traps Triggered 1 | . . 1 Indirectly . | . . . Trap Hack Attempts . | . . . Triggered . | . . . Disarmed . | . . . Reprogrammed . | . . . Reused . | . . . Traps Extracted . | . . . Installed . | . . . Triggered . | . . . Machines | -11 -10 -10 ---------- Run | Yrd Mat Sub Machines Disabled . | . . . Max in Single Turn . | . . . Machines Repaired . | . . . Machines Dismantled . | . . . Machines Sabotaged . | . . . Overloaded Fab Kills . | . . . Hacking | -11 -10 -10 --------- Run | Yrd Mat Sub Machines Accessed 5 | . 4 1 Terminals 2 | . 2 . Fabricators . | . . . Repair Stations . | . . . Recycling Units 2 | . 2 . Scanalyzers . | . . . Garrison Access . | . . . Total Hacks 11 | . 6 5 Successful 8 | . 3 5 Failed 3 | . 3 . Catastrophic . | . . . Database Lockouts . | . . . Manual . | . . . Terminals 3 | . 3 . Fabricators . | . . . Repair Stations . | . . . Recycling Units 3 | . 3 . Scanalyzers . | . . . Garrison Access . | . . . Terminal Hacks 7 | . 2 5 Record 6 | . 1 5 Zone Layout 1 | . 1 . Fabricator Hacks . | . . . Repair Station Hacks . | . . . Recycling Unit Hacks 1 | . 1 . Retrieve Components 1 | . 1 . Scanalyzer . | . . . Garrison Access Hacks . | . . . Unauthorized Hacks . | . . . Terminals . | . . . Fabricators . | . . . Repair Stations . | . . . Recycling Units . | . . . Scanalyzers . | . . . Garrison Access . | . . . Data Cores Recovered . | . . . Used . | . . . Hacking Detections 2 | . 2 . Full Trace Events . | . . . Feedback Events . | . . . Feedback Blocked . | . . . Robot Schematics Acquired . | . . . Robots Built . | . . . Authchips . | . . . Time . | . . . Total Robot Build Rating . | . . . Part Schematics Acquired . | . . . Parts Built . | . . . Authchips . | . . . Time . | . . . Total Part Build Rating . | . . . Part Studies Acquired . | . . . Parts Repaired . | . . . Time . | . . . Parts Recycled . | . . . Recycled Matter . | . . . Retrieved Matter . | . . . Retrieved Components 9 | . 9 . Parts Scanalyzed . | . . . Part Schematics Acquired . | . . . Parts Damaged . | . . . Bothacking | -11 -10 -10 ------------ Run | Yrd Mat Sub Used RIF Installer . | . . . Robots Hacked . | . . . Non-combat . | . . . Combat . | . . . Robot Hacks Applied . | . . . Relay Couplers Released . | . . . Fabnet Peak Effective % . | . . . Robots Rewired . | . . . Allies Hacked . | . . . Hacks Repelled . | . . . Allies | -11 -10 -10 -------- Run | Yrd Mat Sub Total Allies . | . . . Largest Group . | . . . Highest-Rated Group . | . . . Highest-Rated Ally . | . . . Total Orders . | . . . Ally Attacks . | . . . Total Damage . | . . . Kills . | . . . Allies Corrupted . | . . . Allies Melted . | . . . Intel | -11 -10 -10 ------- Run | Yrd Mat Sub Active Infowar (turns) . | . . . Robot Analysis Total . | . . . Derelict Logs Recovered . | . . . Drone Launches . | . . . Drone Recoveries . | . . . Exploration | -11 -10 -10 ------------- Run | Yrd Mat Sub Turns Passed 919 | 68 550 301 Spaces Moved 659 | 64 400 195 Core 32 | 4 . 28 Treads . | . . . Legs . | . . . Wheels 627 | 60 400 167 Hover . | . . . Flight . | . . . Fastest Speed 50 | 50 80 90 Average Speed 91 | 78 89 98 Slowest Speed 150 | 80 95 150 Overloaded Moves . | . . . Propulsion Burnouts . | . . . Robots Hopped . | . . . Potential Cave-ins . | . . . Cave-ins Triggered . | . . . Exploration Rate (%) 25 | 3 62 12 Regions Visited 2 Branch Regions 1 Pre-discovered Areas . | . . . Known Exits Taken . | . . . Unknown Exits Taken 2 | 1 1 . Scrap Searched . | . . . Spaces Dug . | . . . Terrain Destroyed . | . . . Melee . | . . . Projectile . | . . . AOE . | . . . Terrain Rammed . | . . . Walls Destroyed . | . . . Machines Disabled . | . . . Actions | -11 -10 -10 --------- Run | Yrd Mat Sub Total 877 | 81 533 263 Wait 107 | . 77 30 Move 657 | 63 399 195 Hop . | . . . Pick Up 21 | 12 9 . Fast Attach 2 | . 2 . Attach 12 | 6 2 4 Detach . | . . . Swap 4 | . 4 . Drop 7 | . 7 . Fire 67 | . 33 34 Melee . | . . . Ram . | . . . Kick . | . . . Crush . | . . . Escape Stasis . | . . . Rewire . | . . . Trap . | . . . Miscellaneous . | . . . Route ------- -11/Scrapyard -10/Materials (discovered 5 exits: [*Mat x2] / [*Min x2] / *Sub) -10/Subcaves History --------- Turn | Location | Event 8 | -11/Scrapyard | Discovered new exit (range 16) 69 | -11/Scrapyard | Entered Materials 266 | -10/Materials | Discovered new exit (range 6) 332 | -10/Materials | Build established: Mutant 401 | -10/Materials | Discovered new exit (range 5) 453 | -10/Materials | Discovered new exit (range 8) 453 | -10/Materials | Discovered new exit (range 15) 534 | -10/Materials | Discovered new exit (range 6) 619 | -10/Materials | Entered Subcaves 620 | -10/Subcaves | Approached by a straggling Scientist 691 | -10/Subcaves | Core integrity fell below 50% 751 | -10/Subcaves | Lost 5 parts (1p2n2w) 802 | -10/Subcaves | Core integrity fell below 20% 872 | -10/Subcaves | Visited Clippyterm 874 | -10/Subcaves | Learned Factory trap positions 874 | -10/Subcaves | Learned Factory stockpile data 920 | -10/Subcaves | Destroyed by K5-VD3(R) with Subdweller Laser Last Messages --------------- Data stored: Factory trap records. >>Record! "Botnets" It looks like you seek to become a more effective hacker when it comes to the important hacks, and I heartily recommend installing Trojan(Botnet) on at least one or two Terminals to improve your odds of success elsewhere. >>Record! "Finders Keepers" It looks like you're interested in reappropriating Complex 0b10 components, would you like help? Data stored: Factory stockpile data. >>Record! "Letterhead" It looks like you're writing a letter, sorry I don't know how to do that. 00897_ Machine disabled. 00911_ Clippyterm disabled. 00914_ Sub. Laser melted. 00914_ IM-XQP(R) destroyed. Map ----- +----------------------------------------------------+ | ??????????????????????????"" "?????## | | ???????????????????????????? "????## | | ??????????????????????????? "????## | | ????????????????????????"???????## | | ???????????????????????" ??#### | | ???????????????????????" ###" | | ????????????????#####??" "" | | ??????????????### #????""" "" | | ??????????????# ##### ###"" | | ??????????????# ""#"## ###"" #### | | ??????????????## "##"# "" ##?# | | ???????????????#### # "" #?# | | ???????????????###" # #" #### | | ???????????????# ! ##### | | ???????????????# %= "" #??# | | ???????????????# !# "### #### | | ???????????????## ####?## ## | | ????????????????# #?????## # | | ????????????????# #??###?## # | | ???????????????## #?? ##?## ## | | ???????????????# ##? # # | | ???????????????# ## ## | | ???????????????## ## ### | | ?????????####### # # ## #?# | | ?????????#"""## #?##?####? ### | | ?????????# @## #???????? ##?? | | ?????????# &R= # #??????? ???? | | ?????????#""!## # "" #?????? ???? | | ?????????#"""### """"" #?????# ???? | | ?????????#####?"""### #?????# #???? | | ??????????????#"###??###????? #????? | | ??????????????##????????????? ?????? | | ???????????????????????????? ?????? | | ???????????????????????????? ??????? | | ????????????????????????????????????? | | ????????????????????????????????????? | | ????????????????????????????????????? | | ????????????????????????????????????? | | ????????????????????????????????????? | | ????????????????????????????????????? | | ????????????????????????????????????? | | ????????????????????????????????????? | | ????????????????????????????????????? | | ????????????????????????????????????? | | ????????????????????????????????????? | | ????????????????????????????????????? | | ????????????????????????????????????? | | ????????????????????????????????????? | | ????????????????????????????????????? | | ????????????????????????????????????? | +----------------------------------------------------+ Best States ------------- Heat Dissipation 25 Energy Generation 12 Energy Capacity 265 Matter Stores 300 Matter Capacity 300 Sight Range 16 Terrain Scan Density 10 Core Shielding 20 Evasion (%) 44 Item Schematics ----------------- None Robot Schematics ------------------ None Fabricated ------------ Nothing Repaired ---------- Nothing Studied --------- None Alien Tech Used ----------------- None Achievements -------------- None Challenges ------------ None Game ------ Seed RainbowServoBox Manual? 0 Play Time 00:08:27 Cumulative 26.5 hours Start 2026.09.01 @ 01:19:47 End 2026.09.01 @ 01:28:50 Sessions 1 Manual Loads 0 Difficulty Rogue Special Mode None Game No. 60 Rogue 43 Adventurer 15 Explorer 2 Win Type - Total 0 Types 0/0/0/0/0/0/0/0/0/0 Lore% 24 Gallery% 22 Achievement% 20 Wizard Run 0 Options --------- Layout 1 ASCII 0 Keyboard 0 Movement Mouse Keybinds 0 Fullscreen 1 Font 24/Smallcaps Map View 50x35 Zoom Use 0% Tactical HUD 1 Map Filters NONE Filters NONE Steam 1 RUN: 3f2d6c0d-3bd8-4a3c-b285-31e27f3216db